fUSD/lending_fUSD_20250222
["ID","MTS","AMOUNT","RATE_DAILY","PERIOD"]
[354049676,1740207044023,-500.0,0.00011122,2]
[354049678,1740207044032,-500.0,0.00011122,2]
[354049680,1740207044041,-552.46,0.00011122,2]
[354049681,1740207044051,-500.0,0.00011122,2]
[354049684,1740207044060,-500.0,0.00011122,2]
[354049686,1740207044071,-617.96,0.00011122,2]
[354049688,1740207044080,-500.0,0.00011122,2]
[354049690,1740207044090,-500.0,0.00011122,2]
[354049692,1740207044099,-500.0,0.00011122,2]
[354049693,1740207044108,-500.0,0.00011122,2]
[354049695,1740207044117,-500.0,0.00011122,2]
[354049697,1740207044126,-500.0,0.00011122,2]
[354049700,1740207044135,-500.0,0.00011122,2]
[354049701,1740207044145,-500.0,0.00011122,2]
[354049704,1740207044155,-500.0,0.00011122,2]
[354049706,1740207044164,-500.0,0.00011122,2]
[354049707,1740207044173,-500.0,0.00011122,2]
[354049709,1740207044182,-500.0,0.00011122,2]
[354049711,1740207044191,-500.0,0.00011122,2]
[354049713,1740207044200,-500.0,0.00011122,2]
[354049715,1740207044210,-500.0,0.00011122,2]
[354049717,1740207044219,-500.0,0.00011122,2]
[354049719,1740207044228,-500.0,0.00011122,2]
[354049722,1740207044238,-500.0,0.00011122,2]
[354049723,1740207044247,-500.0,0.00011122,2]
[354049725,1740207044257,-500.0,0.00011122,2]
[354049727,1740207044266,-500.0,0.00011122,2]
[354049729,1740207044275,-500.0,0.00011122,2]
[354049731,1740207044285,-500.0,0.00011122,2]
[354049734,1740207044295,-524.77,0.00011122,2]
[354049736,1740207044306,-500.0,0.00011122,2]
[354049738,1740207044315,-500.0,0.00011122,2]
[354049739,1740207044324,-500.0,0.00011122,2]
[354049741,1740207044336,-500.0,0.00011122,2]
[354049744,1740207044345,-500.0,0.00011122,2]
[354049745,1740207044355,-500.0,0.00011122,2]
[354049747,1740207044364,-640.11,0.00011122,2]
[354049749,1740207044375,-500.0,0.00011122,2]
[354049751,1740207044384,-500.0,0.00011122,2]
[354049752,1740207044393,-1692.33,0.00011122,2]
[354049753,1740207044402,-500.0,0.00011122,2]
[354049754,1740207044411,-500.0,0.00011122,2]
[354049755,1740207044420,-500.0,0.00011122,2]
[354049756,1740207044429,-500.0,0.00011122,2]
[354049757,1740207044438,-500.0,0.00011122,2]
[354049758,1740207044447,-700.48,0.00011122,2]
[354049759,1740207044456,-400.0,0.00011122,2]
[354049760,1740207044465,-500.0,0.00011122,2]
[354049762,1740207044474,-500.0,0.00011122,2]
[354049764,1740207044484,-500.0,0.00011122,2]
[354049766,1740207044493,-500.0,0.00011122,2]
[354049768,1740207044503,-500.0,0.00011122,2]
[354049770,1740207044513,-500.0,0.00011122,2]
[354049772,1740207044522,-500.0,0.00011122,2]
[354049774,1740207044531,-500.0,0.00011122,2]
[354049776,1740207044539,-569.44315116,0.00011122,2]
[354049778,1740207044549,-500.0,0.00011122,2]
[354049780,1740207044559,-500.0,0.00011122,2]
[354049782,1740207044568,-505.92951915,0.00011122,2]
[354049784,1740207044577,-500.0,0.00011122,2]
[354049786,1740207044586,-500.0,0.00011122,2]
[354049788,1740207044595,-500.0,0.00011122,2]
[354049790,1740207044604,-500.0,0.00011122,2]
[354049791,1740207044613,-503.21079909,0.00011122,2]
[354049793,1740207044622,-500.0,0.00011122,2]
[354049795,1740207044632,-500.0,0.00011122,2]
[354049798,1740207044641,-500.0,0.00011122,2]
[354049800,1740207044650,-500.0,0.00011122,2]
[354049801,1740207044659,-500.0,0.00011122,2]
[354049803,1740207044668,-500.0,0.00011122,2]
[354049805,1740207044678,-781.28,0.00011122,2]
[354049827,1740207044686,-500.0,0.00011122,2]
[354049830,1740207044884,-150.0,0.00011125,2]
[354049832,1740207044893,-150.0,0.00011129,2]
[354049834,1740207044903,-150.0,0.0001114,2]
[354049836,1740207044912,-150.0,0.00011155,2]
[354049838,1740207044921,-150.0,0.00011169,2]
[354049840,1740207044930,-150.0,0.00011173,2]
[354049842,1740207044939,-150.0,0.00011184,2]
[354049844,1740207044948,-2274.9178277,0.00011187,2]
[354049845,1740207044958,-150.0,0.00011199,2]
[354049847,1740207044967,-150.0,0.00011202,2]
[354049850,1740207044976,-500.0,0.00011203,2]
[354049852,1740207044985,-500.0,0.00011203,2]
[354049854,1740207044995,-500.0,0.00011203,2]
[354049855,1740207045004,-500.0,0.00011203,2]
[354049857,1740207045014,-500.0,0.00011203,2]
[354049859,1740207045023,-500.0,0.00011203,2]
[354049861,1740207045032,-500.0,0.00011203,2]
[354049863,1740207045041,-500.0,0.00011203,2]
[354049865,1740207045051,-500.0,0.00011203,2]
[354049867,1740207045060,-506.53119356,0.00011203,2]
[354049869,1740207045069,-500.0,0.00011203,2]
[354049871,1740207045079,-500.0,0.00011203,2]
[354049873,1740207045088,-500.0,0.00011203,2]
[354049875,1740207045098,-500.0,0.00011203,2]
[354049877,1740207045108,-500.0,0.00011203,2]
[354049879,1740207045117,-1841.69,0.00011203,2]
[354049881,1740207045126,-504.88186403,0.00011203,2]
[354049883,1740207045135,-500.0,0.00011203,2]
[354049885,1740207045144,-500.0,0.00011203,2]
[354049887,1740207045153,-500.0,0.00011203,2]
[354049889,1740207045163,-500.0,0.00011203,2]
[354049891,1740207045172,-449.14737178,0.00011203,2]
[354049893,1740207045181,-500.0,0.00011203,2]
[354049895,1740207045190,-500.0,0.00011203,2]
[354049897,1740207045200,-504.72624392,0.00011203,2]
[354049899,1740207045209,-500.0,0.00011203,2]
[354049901,1740207045219,-504.99923075,0.00011203,2]
[354049903,1740207045228,-500.0,0.00011203,2]
[354049905,1740207045237,-500.0,0.00011203,2]
[354049907,1740207045247,-500.0,0.00011203,2]
[354049909,1740207045256,-577.66891229,0.00011203,2]
[354049911,1740207045265,-500.0,0.00011203,2]
[354049913,1740207045274,-500.0,0.00011203,2]
[354049915,1740207045283,-500.0,0.00011203,2]
[354049917,1740207045293,-500.0,0.00011203,2]
[354049919,1740207045302,-500.0,0.00011203,2]
[354049921,1740207045312,-415.0104149,0.00011203,2]
[354049923,1740207045321,-500.0,0.00011203,2]
[354049925,1740207045331,-500.0,0.00011203,2]
[354049927,1740207045344,-500.0,0.00011203,2]
[354049929,1740207045353,-500.0,0.00011203,2]
[354049931,1740207045362,-500.0,0.00011203,2]
[354049933,1740207045371,-500.0,0.00011203,2]
[354049935,1740207045381,-500.0,0.00011203,2]
[354049937,1740207045391,-500.0,0.00011203,2]
[354049939,1740207045400,-500.0,0.00011203,2]
[354049941,1740207045409,-500.0,0.00011203,2]
[354049943,1740207045421,-535.7,0.00011203,2]
[354049945,1740207045430,-500.50446104,0.00011203,2]
[354049947,1740207045440,-500.0,0.00011203,2]
[354049949,1740207045450,-371.92919958,0.00011203,2]
[354049951,1740207045460,-336.97399097,0.00011203,2]
[354049953,1740207045470,-500.0,0.00011203,2]
[354049955,1740207045479,-500.0,0.00011203,2]
[354049957,1740207045489,-500.0,0.00011203,2]
[354049959,1740207045499,-500.0,0.00011203,2]
[354049961,1740207045509,-500.0,0.00011203,2]
[354049963,1740207045518,-500.0,0.00011203,2]
[354049965,1740207045528,-500.0,0.00011203,2]
[354049967,1740207045538,-500.0,0.00011203,2]
[354049969,1740207045547,-500.0,0.00011203,2]
[354049971,1740207045557,-500.0,0.00011203,2]
[354049973,1740207045567,-500.0,0.00011203,2]
[354049975,1740207045576,-500.0,0.00011203,2]
[354049977,1740207045585,-500.0,0.00011203,2]
[354049979,1740207045594,-500.0,0.00011203,2]
[354049981,1740207045604,-500.0,0.00011203,2]
[354049983,1740207045613,-500.0,0.00011203,2]
[354049985,1740207045623,-500.0,0.00011203,2]
[354049987,1740207045632,-500.0,0.00011203,2]
[354049989,1740207045642,-613.72,0.00011203,2]
[354049991,1740207045651,-500.0,0.00011203,2]
[354049993,1740207045661,-273.67914232,0.00011203,2]
[354049995,1740207045670,-500.0,0.00011203,2]
[354049997,1740207045680,-500.0,0.00011203,2]
[354049999,1740207045689,-500.0,0.00011203,2]
[354050001,1740207045698,-500.0,0.00011203,2]
[354050003,1740207045707,-500.0,0.00011203,2]
[354050005,1740207045717,-500.0,0.00011203,2]
[354050007,1740207045726,-500.0,0.00011203,2]
[354050009,1740207045736,-612.619477,0.00011203,2]
[354050011,1740207045744,-500.0,0.00011203,2]
[354050013,1740207045754,-500.0,0.00011203,2]
[354050015,1740207045763,-500.0,0.00011203,2]
[354050017,1740207045772,-1213.27,0.00011203,2]
[354050019,1740207045781,-500.0,0.00011203,2]
[354050021,1740207045790,-660.27,0.00011203,2]
[354050022,1740207045799,-500.0,0.00011203,2]
[354050025,1740207045809,-500.0,0.00011203,2]
[354050027,1740207045818,-500.0,0.00011203,2]
[354050028,1740207045827,-500.0,0.00011203,2]
[354050031,1740207045836,-583.27,0.00011203,2]
[354050033,1740207045846,-523.22266142,0.00011203,2]
[354050036,1740207045855,-500.0,0.00011203,2]
[354050037,1740207045865,-745.53,0.00011203,2]
[354050040,1740207045875,-555.49155424,0.00011203,2]
[354050041,1740207045884,-500.0,0.00011203,2]
[354050043,1740207045893,-526.971365,0.00011204,2]
[354050046,1740207045903,-500.0,0.00011204,2]
[354050047,1740207045912,-153.80372526,0.00011204,2]
[354050049,1740207045922,-500.0,0.00011204,2]
[354050051,1740207045931,-500.0,0.00011204,2]
[354050053,1740207045940,-500.0,0.00011204,2]
[354050055,1740207045949,-500.0,0.00011204,2]
[354050057,1740207045958,-500.0,0.00011204,2]
[354050059,1740207045968,-500.0,0.00011204,2]
[354050061,1740207045977,-500.0,0.00011204,2]
[354050063,1740207045986,-500.0,0.00011204,2]
[354050065,1740207045996,-500.0,0.00011204,2]
[354050067,1740207046005,-426.91608981,0.00011204,2]
[354050069,1740207046015,-500.0,0.00011204,2]
[354050071,1740207046024,-500.0,0.00011204,2]
[354050073,1740207046033,-500.0,0.00011204,2]
[354050075,1740207046042,-500.0,0.00011204,2]
[354050077,1740207046051,-500.0,0.00011204,2]
[354050079,1740207046061,-500.0,0.00011204,2]
[354050081,1740207046071,-500.0,0.00011204,2]
[354050083,1740207046081,-500.0,0.00011204,2]
[354050085,1740207046090,-500.0,0.00011204,2]
[354050087,1740207046099,-500.0,0.00011204,2]
[354050089,1740207046109,-500.0,0.00011204,2]
[354050091,1740207046118,-500.0,0.00011204,2]
[354050093,1740207046128,-500.0,0.00011204,2]
[354050095,1740207046137,-500.0,0.00011204,2]
[354050097,1740207046146,-516.58204749,0.00011204,2]
[354050099,1740207046155,-500.0,0.00011204,2]
[354050101,1740207046164,-168.3,0.00011204,2]
[354050103,1740207046173,-500.0,0.00011204,2]
[354050105,1740207046183,-500.0,0.00011204,2]
[354050107,1740207046192,-500.0,0.00011204,2]
[354050109,1740207046201,-500.0,0.00011204,2]
[354050111,1740207046210,-500.0,0.00011204,2]
[354050113,1740207046219,-500.0,0.00011204,2]
[354050115,1740207046228,-500.0,0.00011204,2]
[354050117,1740207046237,-500.0,0.00011204,2]
[354050119,1740207046247,-500.0,0.00011204,2]
[354050121,1740207046256,-500.0,0.00011204,2]
[354050123,1740207046265,-500.0,0.00011204,2]
[354050125,1740207046274,-500.0,0.00011204,2]
[354050127,1740207046284,-500.0,0.00011204,2]
[354050129,1740207046294,-500.0,0.00011204,2]
[354050131,1740207046303,-500.0,0.00011204,2]
[354050133,1740207046312,-500.0,0.00011204,2]
[354050135,1740207046321,-500.0,0.00011204,2]
[354050137,1740207046331,-500.0,0.00011204,2]
[354050139,1740207046344,-640.11,0.00011204,2]
[354050141,1740207046354,-500.0,0.00011204,2]
[354050143,1740207046363,-1692.33,0.00011204,2]
[354050145,1740207046373,-500.0,0.00011204,2]
[354050147,1740207046382,-500.0,0.00011204,2]
[354050149,1740207046392,-500.0,0.00011204,2]
[354050151,1740207046401,-500.0,0.00011204,2]
[354050153,1740207046411,-700.48,0.00011204,2]
[354050155,1740207046421,-500.0,0.00011204,2]
[354050157,1740207046431,-500.0,0.00011204,2]
[354050159,1740207046440,-500.0,0.00011204,2]
[354050161,1740207046449,-500.0,0.00011204,2]
[354050163,1740207046458,-500.0,0.00011204,2]
[354050165,1740207046468,-500.0,0.00011204,2]
[354050167,1740207046477,-500.0,0.00011204,2]
[354050169,1740207046486,-500.0,0.00011204,2]
[354050171,1740207046496,-500.0,0.00011204,2]
[354050173,1740207046506,-500.0,0.00011204,2]
[354050175,1740207046515,-500.0,0.00011204,2]
[354050177,1740207046524,-500.0,0.00011204,2]
[354050179,1740207046533,-500.0,0.00011204,2]
[354050181,1740207046542,-340.04726342,0.00011204,2]
[354050183,1740207046552,-500.0,0.00011204,2]
[354050185,1740207046561,-338.69559133,0.00011204,2]
[354050187,1740207046570,-500.0,0.00011204,2]
[354050189,1740207046579,-781.28,0.00011204,2]
[354050191,1740207046588,-150.0,0.00011213,2]
[354050193,1740207046598,-150.0,0.00011219,2]
[354050195,1740207046607,-1000.0,0.00011221,2]
[354050197,1740207046616,-403.829769,0.00011222,2]
[354050199,1740207046625,-150.0,0.00011228,2]
[354050201,1740207046634,-150.0,0.00011229,2]
[354050203,1740207046643,-150.0,0.00011233,2]
[354050205,1740207046652,-150.0,0.00011243,2]
[354050207,1740207046660,-150.0,0.00011257,2]
[354050209,1740207046669,-150.0,0.00011257,2]
[354050211,1740207046678,-342.24507281,0.00011268,2]
[354050213,1740207046687,-380.26307314,0.00011269,2]
[354050215,1740207046696,-150.0,0.00011272,2]
[354050217,1740207046705,-321.07167643,0.00011286,2]
[354050218,1740207046714,-269.88534278,0.00011286,2]
[354050220,1740207046723,-233.05726404,0.00011286,2]
[354050223,1740207046736,-500.0,0.00011286,2]
[354050225,1740207046748,-379.25749646,0.00011286,2]
[354050228,1740207046761,-500.0,0.00011286,2]
[354050230,1740207046772,-500.0,0.00011286,2]
[354050231,1740207046784,-500.0,0.00011286,2]
[354050232,1740207046794,-500.0,0.00011286,2]
[354050233,1740207046805,-500.0,0.00011286,2]
[354050234,1740207046817,-500.0,0.00011286,2]
[354050235,1740207046829,-500.0,0.00011286,2]
[354050236,1740207046841,-500.0,0.00011286,2]
[354050237,1740207046852,-491.35687217,0.00011286,2]
[354050239,1740207046864,-500.0,0.00011286,2]
[354050241,1740207046877,-500.0,0.00011286,2]
[354050243,1740207046888,-500.0,0.00011286,2]
[354050246,1740207046900,-1841.69,0.00011286,2]
[354050248,1740207046912,-500.0,0.00011286,2]
[354050250,1740207046923,-500.0,0.00011286,2]
[354050252,1740207046933,-500.0,0.00011286,2]
[354050254,1740207046944,-500.0,0.00011286,2]
[354050256,1740207046955,-508.61909493,0.00011286,2]
[354050258,1740207046965,-500.0,0.00011286,2]
[354050261,1740207046975,-500.0,0.00011286,2]
[354050263,1740207046987,-500.0,0.00011286,2]
[354050265,1740207046998,-500.0,0.00011286,2]
[354050268,1740207047010,-500.0,0.00011286,2]
[354050270,1740207047021,-500.0,0.00011286,2]
[354050272,1740207047032,-500.0,0.00011286,2]
[354050274,1740207047043,-500.0,0.00011286,2]
[354050276,1740207047055,-500.0,0.00011286,2]
[354050279,1740207047067,-391.28994228,0.00011286,2]
[354050281,1740207047078,-154.78594046,0.00011286,2]
[354050283,1740207047089,-500.0,0.00011286,2]
[354050286,1740207047101,-500.0,0.00011286,2]
[354050288,1740207047112,-500.0,0.00011286,2]
[354050290,1740207047124,-500.0,0.00011286,2]
[354050293,1740207047137,-535.7,0.00011286,2]
[354050295,1740207047149,-500.0,0.00011286,2]
[354050297,1740207047161,-500.0,0.00011286,2]
[354050299,1740207047172,-466.75541572,0.00011286,2]
[354050301,1740207047183,-500.0,0.00011286,2]
[354050304,1740207047195,-27.09375804,0.00011286,2]
[354050307,1740207047214,-472.90624196,0.00011286,2]
[354050309,1740207047225,-500.0,0.00011286,2]
[354050311,1740207047237,-500.0,0.00011286,2]
[354050313,1740207047249,-500.0,0.00011286,2]
[354050316,1740207047262,-500.0,0.00011286,2]
[354050318,1740207047273,-373.23418041,0.00011286,2]
[354050320,1740207047283,-500.0,0.00011286,2]
[354050322,1740207047294,-613.72,0.00011286,2]
[354050324,1740207047306,-500.0,0.00011286,2]
[354050326,1740207047316,-500.0,0.00011286,2]
[354050328,1740207047326,-229.57658513,0.00011286,2]
[354050335,1740207047385,-270.42341487,0.00011286,2]
[354050337,1740207047395,-505.67686656,0.00011286,2]
[354050339,1740207047406,-500.0,0.00011286,2]
[354050341,1740207047419,-612.619477,0.00011286,2]
[354050343,1740207047429,-500.0,0.00011286,2]
[354050345,1740207047439,-1058.79378971,0.00011286,2]
[354050382,1740207047773,-154.47621029,0.00011286,2]
[354050384,1740207047784,-500.0,0.00011286,2]
[354050387,1740207047794,-660.27,0.00011286,2]
[354050389,1740207047804,-500.0,0.00011286,2]
[354050391,1740207047814,-500.0,0.00011286,2]
[354050393,1740207047824,-402.41691431,0.00011286,2]
[354050400,1740207047880,-0.05299709,0.00011286,2]
[354050402,1740207047893,-97.5300886,0.00011286,2]
[354050404,1740207047903,-500.0,0.00011286,2]
[354050406,1740207047913,-583.27,0.00011286,2]
[354050409,1740207047923,-745.53,0.00011286,2]
[354050411,1740207047933,-500.0,0.00011286,2]
[354050413,1740207047944,-500.0,0.00011286,2]
[354050415,1740207047954,-500.0,0.00011286,2]
[354050417,1740207047964,-500.0,0.00011286,2]
[354050419,1740207047975,-258.83168829,0.00011286,2]
[354050421,1740207047986,-417.41399746,0.00011286,2]
[354050423,1740207047997,-500.0,0.00011286,2]
[354050425,1740207048007,-500.0,0.00011286,2]
[354050428,1740207048018,-6322.54237941,0.00011286,2]
[354050431,1740207048040,-37585.14648475,0.00011286,2]
[354050433,1740207048054,-2699.05652604,0.00011286,2]
[354050701,1740207403897,155.87,8.767e-05,2]
[354050702,1740207489327,180.0,0.0002,120]
[354050704,1740207839742,1055.37,8.219e-05,2]
[354050705,1740208014658,-550.0,0.0001,2]
[354050706,1740208039760,-184.86103715,0.00010103,2]
[354050707,1740208039787,-1000.0,0.00010117,2]
[354050708,1740208039815,-156.69,0.00010185,2]
[354050709,1740208039845,-4848.43995697,0.00010203,2]
[354050710,1740208040131,-607.28547526,0.00010203,2]
[354050711,1740208040160,-491.66,0.00010303,2]
[354050712,1740208040187,-567.89,0.00010303,2]
[354050713,1740208040214,-492.53,0.00010303,2]
[354050714,1740208040243,-500.18,0.00010303,2]
[354050715,1740208040270,-509.5,0.00010303,2]
[354050716,1740208040297,-493.76,0.00010303,2]
[354050717,1740208040325,-491.62,0.00010303,2]
[354050718,1740208040352,-497.51,0.00010303,2]
[354050719,1740208040378,-507.44,0.00010303,2]
[354050720,1740208040405,-497.33,0.00010303,2]
[354050721,1740208040430,-500.0,0.00010368,2]
[354050722,1740208040455,-150.0,0.00010368,2]
[354050723,1740208040483,-150.0,0.0001037,2]
[354050724,1740208040514,-502.85,0.00010374,2]
[354050725,1740208040542,-502.37,0.00010418,2]
[354050726,1740208040570,-150.0,0.00010469,2]
[354050727,1740208040599,-1055.37,0.00010482,2]
[354050728,1740208040626,-167.27,0.00010482,2]
[354050729,1740208040660,-502.76,0.00010498,2]
[354050730,1740208040689,-150.0,0.00010506,2]
[354050731,1740208040719,-150.0,0.00010508,2]
[354050732,1740208040749,-150.0,0.00010515,2]
[354050733,1740208040775,-150.0,0.000106,2]
[354050734,1740208040802,-150.0,0.00010602,2]
[354050735,1740208040831,-150.0,0.0001064,2]
[354050736,1740208040858,-150.0,0.00010678,2]
[354050737,1740208040884,-150.0,0.000107,2]
[354050738,1740208040909,-888.11,0.000107,2]
[354050739,1740208040935,-150.0,0.000107,2]
[354050740,1740208040960,-300.84,0.000107,2]
[354050741,1740208040987,-150.0,0.000107,2]
[354050742,1740208041020,-150.0,0.00010708,2]
[354050743,1740208041048,-492.0,0.00010729,2]
[354050744,1740208041074,-150.0,0.00010799,2]
[354050745,1740208041099,-150.0,0.000108,2]
[354050746,1740208041125,-150.0,0.000108,2]
[354050747,1740208041151,-439.34,0.000108,2]
[354050748,1740208041178,-150.0,0.000108,2]
[354050749,1740208041204,-150.0,0.000108,2]
[354050750,1740208041230,-150.0,0.000108,2]
[354050751,1740208041255,-150.0,0.000108,2]
[354050752,1740208041281,-438.94,0.000108,2]
[354050753,1740208041307,-150.0,0.000108,2]
[354050754,1740208041333,-150.0,0.000108,2]
[354050755,1740208041357,-150.0,0.000108,2]
[354050756,1740208041380,-150.0,0.000108,2]
[354050757,1740208041406,-150.0,0.000108,2]
[354050758,1740208041430,-150.0,0.000108,2]
[354050759,1740208041454,-150.0,0.000108,2]
[354050760,1740208041477,-150.0,0.000108,2]
[354050761,1740208041501,-150.0,0.000108,2]
[354050762,1740208041527,-150.0,0.00010859,2]
[354050763,1740208041551,-151.29,0.000109,2]
[354050764,1740208041574,-854.47,0.000109,2]
[354050765,1740208041598,-150.0,0.000109,2]
[354050766,1740208041625,-439.34,0.000109,2]
[354050767,1740208041655,-987.36,0.000109,2]
[354050768,1740208041681,-150.0,0.000109,2]
[354050769,1740208041708,-151.26,0.000109,2]
[354050770,1740208041735,-150.0,0.000109,2]
[354050771,1740208041771,-439.34,0.000109,2]
[354050772,1740208041803,-150.0,0.000109,2]
[354050773,1740208041830,-150.0,0.000109,2]
[354050774,1740208041857,-514.84,0.000109,2]
[354050775,1740208041884,-150.0,0.000109,2]
[354050776,1740208041912,-499.5,0.00011059,2]
[354050777,1740208041939,-798.88710824,0.00011086,2]
[354050778,1740208041967,-150.0,0.00011096,2]
[354050779,1740208041993,-150.0,0.00011096,2]
[354050780,1740208042021,-150.0,0.00011096,2]
[354050781,1740208042052,-987.36,0.000111,2]
[354050782,1740208042080,-150.0,0.000111,2]
[354050783,1740208042108,-150.0,0.00011108,2]
[354050784,1740208042136,-150.0,0.00011112,2]
[354050785,1740208042162,-396.02007333,0.00011113,2]
[354050786,1740208042188,-505.88759615,0.00011122,2]
[354050787,1740208042215,-1024.745,0.00011122,2]
[354050788,1740208042241,-1119.365,0.00011122,2]
[354050789,1740208042269,-150.0,0.00011128,2]
[354050790,1740208042296,-150.0,0.00011144,2]
[354050791,1740208042324,-150.0,0.00011158,2]
[354050792,1740208042352,-150.0,0.0001116,2]
[354050793,1740208042378,-5755.3983,0.00011167,2]
[354050794,1740208042407,-150.0,0.00011176,2]
[354050795,1740208042434,-1095.64984994,0.00011186,2]
[354050796,1740208042461,-5036.106,0.00011186,2]
[354050797,1740208042489,-150.0,0.00011192,2]
[354050798,1740208042516,-987.36,0.000112,2]
[354050799,1740208042542,-150.7898166,0.00011203,2]
[354050800,1740208042569,-461.58427109,0.00011203,2]
[354050801,1740208042595,-500.0,0.00011203,2]
[354050802,1740208042623,-500.0,0.00011203,2]
[354050803,1740208042651,-606.48,0.00011203,2]
[354050804,1740208042678,-510.87797159,0.00011203,2]
[354050805,1740208042705,-500.0,0.00011203,2]
[354050806,1740208042732,-500.0,0.00011203,2]
[354050807,1740208042759,-500.0,0.00011203,2]
[354050808,1740208042786,-500.0,0.00011203,2]
[354050809,1740208042812,-490.97163369,0.00011203,2]
[354050810,1740208042837,-500.0,0.00011203,2]
[354050811,1740208042862,-500.0,0.00011203,2]
[354050812,1740208042888,-323.40734824,0.00011203,2]
[354050813,1740208043094,-504.88419051,0.00011203,2]
[354050814,1740208043120,-339.18445401,0.00011203,2]
[354050815,1740208043147,-500.0,0.00011203,2]
[354050816,1740208043180,-500.0,0.00011203,2]
[354050817,1740208043206,-500.0,0.00011203,2]
[354050818,1740208043234,-506.88565696,0.00011203,2]
[354050819,1740208043260,-289.66859751,0.00011203,2]
[354050820,1740208043286,-500.0,0.00011203,2]
[354050821,1740208043312,-500.0,0.00011203,2]
[354050822,1740208043338,-500.0,0.00011203,2]
[354050823,1740208043364,-500.0,0.00011203,2]
[354050824,1740208043391,-500.0,0.00011203,2]
[354050825,1740208043417,-500.0,0.00011203,2]
[354050826,1740208043443,-500.0,0.00011203,2]
[354050827,1740208043469,-500.0,0.00011203,2]
[354050828,1740208043494,-405.69288014,0.00011203,2]
[354050829,1740208043520,-500.0,0.00011203,2]
[354050830,1740208043546,-500.0,0.00011203,2]
[354050831,1740208043572,-500.0,0.00011203,2]
[354050832,1740208043598,-500.0,0.00011203,2]
[354050833,1740208043625,-514.49,0.00011203,2]
[354050834,1740208043652,-150.96535519,0.00011203,2]
[354050835,1740208043679,-500.0,0.00011203,2]
[354050836,1740208043705,-500.0,0.00011203,2]
[354050837,1740208043731,-500.0,0.00011203,2]
[354050838,1740208043757,-500.0,0.00011203,2]
[354050839,1740208043783,-476.38094957,0.00011203,2]
[354050840,1740208043809,-413.04414599,0.00011203,2]
[354050841,1740208043834,-247.18263409,0.00011203,2]
[354050842,1740208043859,-500.0,0.00011203,2]
[354050843,1740208043884,-500.0,0.00011203,2]
[354050844,1740208043910,-500.0,0.00011203,2]
[354050845,1740208043934,-500.0,0.00011203,2]
[354050846,1740208043961,-500.0,0.00011203,2]
[354050847,1740208043986,-500.0,0.00011203,2]
[354050848,1740208044012,-500.0,0.00011203,2]
[354050849,1740208044037,-168.23852472,0.00011203,2]
[354050850,1740208044062,-505.8195853,0.00011203,2]
[354050851,1740208044088,-440.12130269,0.00011203,2]
[354050852,1740208044113,-500.0,0.00011203,2]